fUSD/lending_fUSD_20240918
["ID","MTS","AMOUNT","RATE_DAILY","PERIOD"]
[338493691,1726701084459,-500.0,0.00014794,2]
[338493692,1726701084468,-500.0,0.00014794,2]
[338493693,1726701084477,-1376.2,0.00014794,2]
[338493694,1726701084486,-2830.22,0.00014794,2]
[338493695,1726701084496,-7235.56,0.00014794,2]
[338493696,1726701084505,-628.89,0.00014794,2]
[338493697,1726701084514,-1289.04,0.00014794,2]
[338493698,1726701084523,-951.74,0.00014794,2]
[338493699,1726701084532,-500.0,0.00014794,2]
[338493700,1726701084541,-774.41,0.00014794,2]
[338493701,1726701084551,-2874.83,0.00014794,2]
[338493702,1726701084560,-1077.79,0.00014794,2]
[338493703,1726701084571,-3215.63,0.00014794,2]
[338493704,1726701084580,-500.0,0.00014794,2]
[338493705,1726701084590,-244.46204659,0.00014794,2]
[338493706,1726701084599,-150.0,0.00014795,2]
[338493707,1726701084608,-150.0,0.00014795,2]
[338493708,1726701084617,-150.0,0.00014795,2]
[338493709,1726701084626,-150.0,0.00014795,2]
[338493710,1726701084635,-150.0,0.00014795,2]
[338493711,1726701084644,-150.0,0.00014795,2]
[338493712,1726701084653,-150.0,0.00014795,2]
[338493713,1726701084662,-300.36,0.00014795,2]
[338493714,1726701084671,-150.0,0.00014795,2]
[338493715,1726701084680,-150.0,0.00014795,2]
[338493716,1726701084689,-150.0,0.00014795,2]
[338493717,1726701084698,-150.0,0.00014795,2]
[338493718,1726701084708,-150.0,0.00014795,2]
[338493719,1726701084717,-151.0,0.00014795,2]
[338493720,1726701084726,-500.0,0.00014799,2]
[338493721,1726701084735,-7709.0,0.000148,2]
[338493722,1726701084744,-3000.0,0.000148,2]
[338493723,1726701084754,-1779.0,0.000148,2]
[338493724,1726701084764,-151.0,0.000148,2]
[338493725,1726701084773,-53335.34832056,0.000148,2]
[338493726,1726701084786,-1325.20799028,0.000148,2]
[338493727,1726701084798,-6855.90067227,0.000148,2]
[338493728,1726701084810,-14731.06804473,0.000148,2]
[338493729,1726701084820,-235.47263193,0.00014806,5]
[338493730,1726701084830,-12482.87021106,0.00014813,2]
[338493731,1726701084869,-3262.74750045,0.00014813,2]
[338493732,1726701084878,-308.63472768,0.0001482,2]
[338493733,1726701084888,-255.0,0.00014821,2]
[338493734,1726701084897,-1416.36718108,0.00014841,2]
[338493735,1726701084908,-585.395015,0.00014841,2]
[338493736,1726701084919,-370.19267968,0.00014841,2]
[338493737,1726701084931,-682.39886699,0.00014841,2]
[338493738,1726701084942,-1201.87353666,0.00014841,2]
[338493739,1726701084953,-1543.77272059,0.00014841,2]
[338493740,1726701084962,-5110.38438141,0.00014849,2]
[338493741,1726701084974,-689.61561859,0.00014849,2]
[338493742,1726701084983,-1048.40551141,0.0001485,2]
[338493743,1726701084994,-2497.32090483,0.0001485,2]
[338493744,1726701085004,-130.4393165,0.0001485,2]
[338493745,1726701085015,-102.5606835,0.0001485,2]
[338493746,1726701085024,-203.0,0.0001485,2]
[338493747,1726701085034,-263.6174038,0.00014853,2]
[338493748,1726701085044,-491.8819127,0.00014856,2]
[338493749,1726701085059,-1058.55765,0.00014856,2]
[338493750,1726701085732,-250.0,0.00013215,2]
[338493751,1726701085742,-562.88130218,0.0001452,2]
[338493752,1726701085752,-1194.25869782,0.0001452,2]
[338493753,1726701085763,-398.34130218,0.0001452,2]
[338493754,1726701085773,-1592.6,0.00014794,2]
[338493755,1726701085782,-247.3334586,0.00014856,2]
[338493756,1726701085794,-1320.57978709,0.00014856,2]
[338493757,1726701085807,-13624.64719161,0.00014856,2]
[338493758,1726701085818,-151.0,0.00014856,2]
[338493759,1726701085827,-667.188131,0.00014856,2]
[338493760,1726701085837,-667.188131,0.00014856,2]
[338493761,1726701085847,-5800.0,0.00014858,2]
[338493762,1726701085858,-203.0601175,0.00014863,2]
[338493763,1726701085868,-298.0532462,0.00014863,2]
[338493764,1726701085878,-500.0,0.00014863,2]
[338493765,1726701085888,-1828.51,0.00014863,2]
[338493766,1726701085898,-960.62,0.00014863,2]
[338493767,1726701085908,-865.98,0.00014863,2]
[338493768,1726701085918,-500.0,0.00014863,2]
[338493769,1726701085928,-500.0,0.00014863,2]
[338493770,1726701085938,-2573.6807859,0.00014863,2]
[338493771,1726701085947,-2378.01,0.00014863,2]
[338493772,1726701085957,-500.0,0.00014863,2]
[338493773,1726701085967,-3771.81,0.00014863,2]
[338493774,1726701085977,-1280.8903767,0.00014863,2]
[338493775,1726701085987,-3024.25,0.00014863,2]
[338493776,1726701085997,-500.0,0.00014863,2]
[338493777,1726701086007,-2388.85,0.00014863,2]
[338493778,1726701086016,-500.0,0.00014863,2]
[338493779,1726701086026,-1774.02,0.00014863,2]
[338493780,1726701086035,-500.0,0.00014863,2]
[338493781,1726701086045,-962.31,0.00014863,2]
[338493782,1726701086054,-2031.89884405,0.00014863,2]
[338493783,1726701086066,-8226.83104145,0.00014863,2]
[338493784,1726701086086,-2950.76,0.00014863,2]
[338493785,1726701086096,-500.0,0.00014863,2]
[338493786,1726701086106,-824.48,0.00014863,2]
[338493787,1726701086116,-155.817805,0.00014863,2]
[338493788,1726701086125,-321.58892936,0.00014863,2]
[338493789,1726701086137,-2087.08,0.00014863,2]
[338493790,1726701086148,-604.49107064,0.00014863,2]
[338493791,1726701086158,-155.817805,0.00014863,2]
[338493792,1726701086169,-1278.47,0.00014863,2]
[338493793,1726701086179,-655.42,0.00014863,2]
[338493794,1726701086188,-164.76,0.00014863,2]
[338493795,1726701086198,-170.036168,0.00014863,2]
[338493796,1726701086208,-500.0,0.00014863,2]
[338493797,1726701086218,-158.993655,0.00014863,2]
[338493798,1726701086228,-1548.14683739,0.00014863,2]
[338493799,1726701086240,-1347.25316261,0.00014863,2]
[338493800,1726701086249,-1367.16,0.00014863,2]
[338493801,1726701086259,-500.0,0.00014863,2]
[338493802,1726701086269,-2104.93,0.00014863,2]
[338493803,1726701086278,-2496.39,0.00014863,2]
[338493804,1726701086288,-950.37,0.00014863,2]
[338493805,1726701086297,-500.0,0.00014863,2]
[338493806,1726701086307,-682.71,0.00014863,2]
[338493807,1726701086319,-1647.72,0.00014863,2]
[338493808,1726701086332,-3915.91,0.00014863,2]
[338493809,1726701086341,-565.83,0.00014863,2]
[338493810,1726701086351,-500.0,0.00014863,2]
[338493811,1726701086360,-534.73,0.00014863,2]
[338493812,1726701086370,-151.0,0.00014863,2]
[338493813,1726701086380,-2020.87,0.00014863,2]
[338493814,1726701086389,-867.64,0.00014863,2]
[338493815,1726701086399,-655.32,0.00014863,2]
[338493816,1726701086408,-860.32,0.00014863,2]
[338493817,1726701086418,-151.0,0.00014863,2]
[338493818,1726701086427,-257.889973,0.00014863,2]
[338493819,1726701086437,-257.889973,0.00014863,2]
[338493820,1726701086446,-151.0,0.00014863,2]
[338493821,1726701086456,-151.0,0.00014863,2]
[338493822,1726701086465,-156.244954,0.00014863,2]
[338493823,1726701086475,-156.244954,0.00014863,2]
[338493824,1726701086484,-151.0,0.00014863,2]
[338493825,1726701086494,-151.0,0.00014863,2]
[338493826,1726701086503,-207.774682,0.00014863,2]
[338493827,1726701086513,-207.774682,0.00014863,2]
[338493828,1726701086522,-154.670468,0.00014863,2]
[338493829,1726701086531,-154.670468,0.00014863,2]
[338493830,1726701086541,-5800.0,0.00014866,2]
[338493831,1726701086550,-500.0,0.00014873,2]
[338493832,1726701086560,-500.0,0.00014873,2]
[338493833,1726701086572,-500.0,0.00014873,2]
[338493834,1726701086582,-500.0,0.00014873,2]
[338493835,1726701086591,-500.0,0.00014873,2]
[338493836,1726701086601,-500.0,0.00014873,2]
[338493837,1726701086610,-500.0,0.00014873,2]
[338493838,1726701086620,-469.25916445,0.00014873,2]
[338493839,1726701086629,-500.0,0.00014873,2]
[338493840,1726701086638,-500.0,0.00014873,2]
[338493841,1726701086885,-500.0,0.00014873,2]
[338493842,1726701086911,-500.0,0.00014873,2]
[338493843,1726701086921,-500.0,0.00014873,2]
[338493844,1726701086931,-354.42751384,0.00014873,2]
[338493845,1726701086943,-145.57248616,0.00014873,2]
[338493846,1726701086953,-500.0,0.00014873,2]
[338493847,1726701086963,-500.0,0.00014873,2]
[338493848,1726701086976,-500.0,0.00014873,2]
[338493849,1726701086986,-500.0,0.00014873,2]
[338493850,1726701086998,-500.0,0.00014873,2]
[338493851,1726701087007,-500.0,0.00014873,2]
[338493852,1726701087017,-500.0,0.00014873,2]
[338493853,1726701087026,-500.0,0.00014873,2]
[338493854,1726701087035,-500.0,0.00014873,2]
[338493855,1726701087044,-210.01182197,0.00014873,2]
[338493856,1726701087055,-289.98817803,0.00014873,2]
[338493857,1726701087065,-500.0,0.00014873,2]
[338493858,1726701087075,-500.0,0.00014873,2]
[338493859,1726701087085,-500.0,0.00014873,2]
[338493860,1726701087094,-75.24679865,0.00014873,2]
[338493861,1726701087196,-424.75320135,0.00014873,2]
[338493862,1726701087206,-95.67138489,0.00014873,2]
[338493863,1726701087219,-408.55215862,0.00014873,2]
[338493864,1726701087228,-500.0,0.00014873,2]
[338493865,1726701087238,-383.38717625,0.00014873,2]
[338493866,1726701087248,-207.96074513,0.00014873,2]
[338493867,1726701087260,-292.03925487,0.00014873,2]
[338493868,1726701087269,-201.05086357,0.00014873,2]
[338493869,1726701087281,-443.29409023,0.00014873,2]
[338493870,1726701087290,-500.0,0.00014873,2]
[338493871,1726701087300,-500.0,0.00014873,2]
[338493872,1726701087309,-300.0,0.00014873,2]
[338493873,1726701087319,-500.0,0.00014873,2]
[338493874,1726701087329,-500.0,0.00014873,2]
[338493875,1726701087339,-449.87851609,0.00014873,2]
[338493876,1726701087349,-500.0,0.00014873,2]
[338493877,1726701087358,-500.0,0.00014873,2]
[338493878,1726701087368,-500.0,0.00014873,2]
[338493879,1726701087377,-500.0,0.00014873,2]
[338493880,1726701087387,-500.0,0.00014873,2]
[338493881,1726701087396,-500.0,0.00014873,2]
[338493882,1726701087408,-163.33856887,0.00014873,2]
[338493883,1726701087421,-7.62787513,0.00014873,2]
[338493884,1726701087431,-5800.0,0.00014874,2]
[338493885,1726701087440,-8500.0,0.00014882,2]
[338493886,1726701087450,-5800.0,0.00014883,2]
[338493887,1726701087460,-176.81501871,0.0001489,2]
[338493888,1726701087470,-190.98665055,0.0001489,2]
[338493889,1726701087479,-244.46204659,0.0001489,2]
[338493890,1726701087489,-7461.79388483,0.00014891,2]
[338493891,1726701087502,-1038.20611517,0.00014891,2]
[338493892,1726701087513,-1592.62047891,0.00014891,2]
[338493893,1726701087525,-400.57449998,0.00014891,2]
[338493894,1726701087537,-1303.17693193,0.00014891,2]
[338493895,1726701087547,-746.22474826,0.00014891,2]
[338493896,1726701087559,-1757.40334092,0.00014891,2]
[338493897,1726701087572,-2304.48789907,0.000149,2]
[338493898,1726701087582,-5800.0,0.000149,2]
[338493899,1726701087591,-1847.40467511,0.000149,2]
[338493900,1726701087601,-500.0,0.000149,2]
[338493901,1726701087611,-8500.0,0.000149,2]
[338493902,1726701087620,-500.0,0.000149,2]
[338493903,1726701087630,-2729.02910908,0.000149,2]
[338493904,1726701087642,-502.48843823,0.000149,2]
[338493905,1726701087653,-2049.27708235,0.000149,2]
[338493906,1726701087665,-747.40697802,0.000149,2]
[338493907,1726701087677,-505.14,0.000149,2]
[338493908,1726701087688,-292.064,0.000149,2]
[338493909,1726701087706,-371.08009368,0.000149,2]
[338493910,1726701087718,-602.0,0.000149,2]
[338493911,1726701087730,-1434.79165165,0.000149,2]
[338493912,1726701087741,-569.62893995,0.000149,2]
[338493913,1726701087753,-3194.03000004,0.000149,2]
[338493914,1726701087764,-984.31139991,0.000149,2]
[338493915,1726701087776,-2457.38273895,0.000149,2]
[338493916,1726701087787,-6155.16775606,0.000149,2]
[338493917,1726701087799,-6653.2513662,0.000149,2]
[338493918,1726701087810,-1010.28983316,0.000149,2]
[338493919,1726701087824,-324.95834368,0.000149,2]
[338493920,1726701087836,-4417.70226904,0.000149,2]
[338493921,1726701087846,-347.87526435,0.000149,2]
[338493922,1726701087855,-519.70246661,0.000149,2]
[338493923,1726701087867,-1285.97004045,0.000149,2]
[338493924,1726701087878,-3994.32749294,0.000149,2]
[338493925,1726701087888,-286.21445985,0.000149,2]
[338493926,1726701087899,-6676.43119304,0.000149,2]
[338493927,1726701087910,-1644.15644672,0.000149,2]
[338493928,1726701087922,-7138.8156119,0.000149,2]
[338493929,1726701087932,-1266.18127475,0.000149,2]
[338493930,1726701087942,-308.63472768,0.000149,2]
[338493931,1726701087951,-187.54925441,0.000149,2]
[338493932,1726701088026,-400.79468794,0.0001452,2]
[338493933,1726701088037,-500.0,0.0001452,2]
[338493934,1726701088048,-1196.28531206,0.0001452,2]
[338493935,1726701088058,-1056.88,0.0001452,2]
[338493936,1726701088070,-233.80483085,0.000149,2]
[338493937,1726701088080,-700.2203434,0.00014923,2]
[338493938,1726701118255,500.0,0.00011164,2]
[338493939,1726701118924,500.0,0.00011164,2]
[338493940,1726701120536,500.0,0.00012534,2]
[338493941,1726701357318,1050.0,0.00011,2]
[338493942,1726701434146,369.55,0.00011577,2]
[338493943,1726701620917,1000.0,0.00011,2]
[338493976,1726702069758,351.07,0.00011058,2]
[338493977,1726702131995,157.24,0.00010959,2]
[338493992,1726702231646,-152.35,0.0001287,2]
[338493993,1726702231657,-500.0,0.00012879,2]
[338493994,1726702231667,-500.0,0.00012879,2]
[338493995,1726702231676,-231.36245725,0.00012879,2]
[338493996,1726702231685,-150.0,0.00012879,2]
[338493997,1726702231695,-1695.93754275,0.0001288,2]
[338493998,1726702231707,-341.42630098,0.0001288,2]
[338493999,1726702231736,-4530.5339082,0.0001288,2]
[338494000,1726702231826,-1096.48125041,0.0001288,2]
[338494009,1726702237605,-185.90686756,0.00012779,2]
[338494010,1726702237615,-1822.88968434,0.0001288,2]
[338494011,1726702237626,-2092.14182064,0.0001288,2]
[338494012,1726702237827,-73271.75703828,0.0001288,2]
[338494232,1726702240006,-386.02004415,0.0001288,2]
[338494236,1726702240037,-2751.123375,0.0001288,2]
[338494238,1726702240048,-807.73443717,0.0001288,2]
[338494241,1726702240060,-1360.27562395,0.0001288,2]
[338494243,1726702240071,-5847.15966707,0.0001288,2]
[338494245,1726702240090,-1244.6844767,0.0001288,2]
[338494247,1726702240101,-1596.3,0.0001288,2]
[338494252,1726702240144,-352915.27984574,0.0001288,2]
[338494254,1726702240155,-957.54212243,0.0001288,2]
[338494257,1726702240167,-993.49326272,0.0001288,2]
[338494259,1726702240178,-304.0741039,0.0001288,2]
[338494263,1726702240205,-1840.0,0.0001288,2]
[338494264,1726702240216,-795.53578029,0.0001288,2]
[338494632,1726702244170,-317.7133584,0.0001288,2]
[338494779,1726702246097,-293.229,0.0001288,2]
[338494780,1726702246108,-302.27602305,0.0001288,2]
[338494781,1726702246119,-4778.87436627,0.0001288,2]
[338494782,1726702246131,-41521.38341373,0.0001288,2]
[338494783,1726702246140,-15748.52683179,0.0001288,2]
[338494784,1726702246149,-236.45909106,0.000129,2]
[338494785,1726702246159,-1187.26997201,0.000129,2]
[338494786,1726702246168,-825.47645975,0.000129,2]
[338494787,1726702246178,-500.0,0.00012973,2]
[338494788,1726702246187,-500.0,0.00012973,2]
[338494789,1726702246197,-480.27,0.00012976,2]
[338494790,1726702246206,-152.35,0.0001299,2]
[338494791,1726702246215,-152.35,0.0001299,2]
[338494792,1726702246224,-152.35,0.0001299,2]
[338494793,1726702246234,-152.35,0.0001299,2]
[338494794,1726702246243,-152.35,0.0001299,2]
[338494795,1726702246253,-152.35,0.0001299,2]
[338494796,1726702246262,-152.35,0.0001299,2]
[338494797,1726702246272,-152.35,0.0001299,2]
[338494798,1726702246280,-152.35,0.0001299,2]
[338494799,1726702246290,-152.35,0.0001299,2]
[338494800,1726702246300,-152.35,0.0001299,2]
[338494801,1726702246309,-152.35,0.0001299,2]
[338494802,1726702246318,-152.35,0.0001299,2]
[338494803,1726702246328,-152.35,0.0001299,2]
[338494804,1726702246340,-152.35,0.0001299,2]
[338494805,1726702246350,-152.35,0.0001299,2]
[338494806,1726702246359,-152.35,0.0001299,2]
[338494807,1726702246369,-164.71,0.00012993,2]
[338494809,1726702246382,-150.51745403,0.00012999,2]
[338494811,1726702246392,-154223.28957031,0.00013,2]
[338494813,1726702246405,-1100.0,0.00013,2]
[338494815,1726702246415,-707360.92194912,0.00013,2]
[338494819,1726702246446,-397131.55141468,0.00013,2]
[338494822,1726702246473,-320.98,0.00013,2]
[338494824,1726702246484,-12216.4,0.00013,2]
[338495022,1726702265645,200.0,0.000127,4]
[338495023,1726702281608,250.0,0.00012711,2]
[338495024,1726702353022,500.0,0.00011164,2]
[338495025,1726702354185,500.0,0.00011164,2]
[338495026,1726702356054,500.0,0.00012534,2]
[338495027,1726702360194,258.65,0.0001258,2]
[338495028,1726702396537,151.09907107,0.0001268,2]
[338495029,1726702438606,250.0,0.00012507,2]
[338495030,1726702462494,400.0,0.00012711,2]
[338495031,1726702558398,150.0,0.00012473,2]
[338495032,1726702598946,358.06,0.00012516,2]
[338495033,1726702690179,349.73,0.00010643,2]
[338495034,1726702710374,250.0,0.00012561,2]
[338495035,1726702859249,443.86,0.0001225,2]
[338495038,1726702993473,180.43,0.00012167,2]
[338495041,1726703026061,680.0,0.00012183,2]
[338495043,1726703087970,170.1,0.00012711,2]
[338495044,1726703113391,151.62886511,0.00011688,2]
[338495045,1726703122112,250.0,0.00012263,2]
[338495046,1726703160749,1050.0,0.00011,2]
[338495047,1726703225733,2110.57,0.00012361,2]
[338495048,1726703304775,167.42,0.00010959,2]
[338495064,1726703431606,-174.06,0.00012749,2]
[338495066,1726703431616,-1000.0,0.0001278,2]
[338495068,1726703431625,-178.1665,0.0001278,2]
[338495070,1726703431634,-150.0,0.00012849,2]
[338495072,1726703431644,-2898.24649925,0.0001287,2]
[338495074,1726703431654,-174.06,0.0001289,2]
[338495075,1726703431663,-174.06,0.0001289,2]
[338495077,1726703431673,-174.06,0.0001289,2]
[338495079,1726703431683,-174.06,0.0001289,2]
[338495081,1726703431692,-1001.92167631,0.00012899,2]
[338495082,1726703431701,-150.0,0.00012899,2]
[338495083,1726703431711,-6177.36532444,0.000129,2]
[338495084,1726703431738,-49767.08927556,0.000129,2]
[338495085,1726703431747,-8012.32864051,0.000129,2]
[338495086,1726703431775,-2087.15955949,0.000129,2]
[338495087,1726703431784,-4292.61316328,0.000129,2]
[338495088,1726703431796,-1026.39824093,0.000129,2]
[338495089,1726703431817,-2434.05004863,0.000129,2]
[338495090,1726703431828,-5596.13719113,0.000129,2]
[338495091,1726703431849,-1800.80055603,0.000129,2]
[338495092,1726703431858,-154.31128906,0.000129,2]
[338495093,1726703431868,-3099.79396261,0.000129,2]
[338495094,1726703431882,-402.31913625,0.000129,2]
[338495116,1726703437590,-3997.88690114,0.000129,2]
[338495117,1726703437600,-2263.71,0.000129,2]
[338495118,1726703437609,-499.99,0.000129,2]
[338495119,1726703437619,-186.27449136,0.000129,2]
[338495120,1726703437628,-214.13293722,0.00012918,2]
[338495121,1726703437637,-164.23942678,0.00012923,2]
[338495122,1726703437647,-275.52126727,0.00012973,2]
[338495123,1726703437656,-152.33,0.0001299,2]
[338495124,1726703437666,-152.33,0.0001299,2]
[338495125,1726703437675,-152.33,0.0001299,2]
[338495126,1726703437684,-152.33,0.0001299,2]
[338495127,1726703437694,-152.33,0.0001299,2]
[338495128,1726703437704,-152.33,0.0001299,2]
[338495129,1726703437713,-343.029,0.00012993,2]
[338495130,1726703437722,-388.45346803,0.00012999,2]
[338495131,1726703437733,-111.54653197,0.00012999,2]
[338495132,1726703437743,-500.0,0.00012999,2]
[338495133,1726703437752,-375.91090728,0.00012999,2]
[338495134,1726703437764,-124.08909272,0.00012999,2]
[338495135,1726703437774,-199.30226172,0.00012999,2]
[338495136,1726703437784,-395.32216779,0.00012999,2]
[338495137,1726703437793,-31273.81247777,0.00013,2]
[338495138,1726703437822,-44122.97849,0.00013,2]
[338495139,1726703437833,-61604.58807263,0.00013,2]
[338495140,1726703437845,-644.68559983,0.00013,2]
[338495141,1726703437856,-1016.61,0.00013,2]
[338495142,1726703437867,-1715.6453042,0.00013,2]
[338495143,1726703437878,-818.775,0.00013,2]
[338495144,1726703437970,-820.5999,0.00013,2]
[338495145,1726703438000,-478.31959918,0.00013,2]
[338495146,1726703438128,-37145.9829598,0.00013,2]
[338495148,1726703439685,-4626.59156538,0.00013,2]
[338495149,1726703439696,-52314.45260923,0.00013,2]
[338495150,1726703439724,-1354.79323557,0.00013,2]
[338495151,1726703439736,-376626.95408617,0.00013,2]
[338495152,1726703439771,-646.3952082,0.00013,2]
[338495153,1726703439783,-2336.89922027,0.00013,2]
[338495154,1726703439794,-356.19588052,0.00013,2]
[338495155,1726703439806,-1634.55309808,0.00013,2]
[338495156,1726703439832,-3895.58825898,0.00013,2]
[338495157,1726703439843,-711.3485025,0.00013,2]
[338495158,1726703439855,-355.72425126,0.00013,2]
[338495159,1726703439866,-24912.89410395,0.00013,2]
[338495160,1726703439878,-76710.75924917,0.00013,2]
[338495161,1726703439888,-370213.10565256,0.00013,2]
[338495162,1726703439908,-2561.10542528,0.00013,2]
[338495163,1726703439919,-2414.47484465,0.00013,2]
[338495164,1726703439931,-3810.54013007,0.00013,2]
[338495165,1726703439941,-10126.12732249,0.00013,2]
[338495166,1726703439956,-682.60523184,0.00013,2]
[338495167,1726703439994,-540.15952284,0.00013,2]
[338495168,1726703440005,-253.55742849,0.00013,2]
[338495169,1726703440016,-3382.21167,0.00013,2]
[338495207,1726703442397,1049.32989347,0.0001274,2]
[338495227,1726703442610,-174.1605,0.0001277,2]
[338495229,1726703442619,-131.51831732,0.00013,2]
[338495231,1726703442631,-9012.60170715,0.00013,2]
[338495233,1726703442643,-593.90282978,0.00013,2]
[338495236,1726703442654,-340.68338463,0.00013,2]
[338495239,1726703442680,-7764.0017081,0.00013,2]
[338495241,1726703442696,-1267.53629767,0.00013,2]
[338495244,1726703442707,-1240.6631406,0.00013,2]
[338495246,1726703442718,-333.365006,0.00013,2]
[338495248,1726703442728,-12602.56263663,0.00013,2]
[338495250,1726703442739,-530.11986904,0.00013,2]
[338495269,1726703444372,-463.3999995,0.00013,2]
[338495270,1726703444387,-754.9399989,0.00013,2]
[338495271,1726703444397,-2558.2578458,0.00013,2]
[338495272,1726703444408,-10015.72205188,0.00013,2]
[338495273,1726703444419,-61403.86851789,0.00013,2]
[338495274,1726703444431,-489.18296135,0.00013,2]
[338495275,1726703444442,-362.76485203,0.00013,2]
[338495276,1726703444453,-242992.47263957,0.00013,2]
[338495277,1726703444464,-3265.01060924,0.00013,2]
[338495278,1726703444476,-1067.81353758,0.00013,2]
[338495279,1726703444489,-455.24917089,0.00013,2]
[338495280,1726703444500,-395.90060087,0.00013,2]
[338495281,1726703444511,-574.40904998,0.00013,2]
[338495282,1726703444524,-773.9542217,0.00013,2]
[338495283,1726703444539,-29002.07454525,0.00013,2]
[338495284,1726703444552,-2285.82171714,0.00013,2]
[338495285,1726703444619,-1668.02297108,0.00013,2]
[338495286,1726703444631,-993.12736041,0.00013,2]
[338495287,1726703444642,-6679.72932,0.00013,2]
[338495288,1726703444653,-373.5132,0.00013,2]
[338495289,1726703444676,-1082.91734936,0.00013,2]
[338495290,1726703444688,-80669.82856533,0.00013,2]
[338495291,1726703444699,-311.7686698,0.00013,2]
[338495292,1726703444711,-444.24779552,0.00013,2]
[338495293,1726703444722,-684.93719709,0.00013,2]
[338495294,1726703444969,-1516.6,0.00013,2]
[338495295,1726703444980,-2467.1499995,0.00013,2]
[338495296,1726703444991,-7440.45079688,0.00013,2]
[338495297,1726703445002,-1000.0,0.00013,2]
[338495298,1726703445013,-473.78832268,0.00013,2]
[338495299,1726703445032,-15775.77915603,0.00013,2]
[338495300,1726703445050,-484.33001,0.00013,2]
[338495301,1726703445086,-8739.00278943,0.00013,2]
[338495302,1726703445098,-674.16794245,0.00013,2]
[338495303,1726703445110,-368.95688472,0.00013,2]
[338495304,1726703445121,-529.685291,0.00013,2]
[338495305,1726703445132,-14038.9224587,0.00013,2]
[338495306,1726703445143,-571.571,0.00013,2]
[338495307,1726703445156,-10992.66936184,0.00013,2]
[338495312,1726703446372,-310.75229451,0.000129,2]
[338495313,1726703446383,-17304.02634633,0.00013,2]
[338495314,1726703446464,-1269.51983804,0.00013,2]
[338495315,1726703446475,-463.93837814,0.00013,2]
[338495316,1726703446486,-1224.9376738,0.00013,2]
[338495317,1726703446498,-10401.00682633,0.00013,2]
[338495318,1726703446573,-2735.70533876,0.00013,2]
[338495319,1726703446584,-1246.58900404,0.00013,2]
[338495320,1726703446595,-360.08234564,0.00013,2]
[338495321,1726703446606,-832.13,0.00013,2]
[338495322,1726703446618,-1326.68,0.00013,2]
[338495323,1726703446630,-2800.21661438,0.00013,2]
[338495324,1726703446641,-581.02513369,0.00013,2]
[338495325,1726703446652,-1529.47956354,0.00013,2]
[338495326,1726703446666,-265.75633272,0.00013,2]
[338495327,1726703446740,-890.56008381,0.00013,2]
[338495328,1726703446751,-38447.83808893,0.00013,2]
[338495329,1726703446763,-587995.29238635,0.00013,2]
[338495330,1726703446772,-8476.01669773,0.00013,2]
[338495331,1726703446781,-791.51331466,0.0001303,2]
[338495332,1726703446792,-55116.0,0.00013032,2]
[338495333,1726703446801,-326.9693407,0.0001313,2]
[338495334,1726703446810,-429.95,0.000132,2]
[338495335,1726703446820,-214.13293717,0.00013248,2]
[338495336,1726703446829,-208.76,0.00013294,2]
[338495337,1726703446839,-214.13293717,0.00013579,2]
[338495338,1726703446848,-191.9,0.00013699,2]
[338495339,1726703446857,-150.0,0.00013699,2]
[338495340,1726703446867,-680.0,0.00013706,2]
[338495341,1726703446876,-283.925861,0.00013799,2]
[338495342,1726703446885,-796.0,0.00013821,2]
[338495343,1726703446895,-606.96,0.000139,2]
[338495344,1726703446903,-1000.9,0.000139,2]